[Event "Titled Tuesday Blitz June 20 Early 2023"]
[White "Womacka, Mathias"]
[Black "Vlassov, Nikolai"]
[WhiteFideId "4611390"]
[BlackFideId "4103360"]
[WhiteElo "2377"]
[BlackElo "2324"]
[Result "1-0"]
[Round "11"]
[TimeControl "180+2"]
[Date "2023.06.20"]
[WhiteClock "0:00:06"]
[BlackClock "0:00:23"]
[Board "71"]

1. e4 {[%clk 0:02:56]}  Nc6 {[%clk 0:02:59]} 2. Nf3 {[%clk 0:02:54]}  d5 {[%clk 0:03:00]} 3. exd5 {[%clk 0:02:53]}  Qxd5 {[%clk 0:03:00]} 4. Nc3 {[%clk 0:02:51]}  Qa5 {[%clk 0:03:00]} 5. Bb5 {[%clk 0:02:51]}  Bd7 {[%clk 0:03:00]} 6. d4 {[%clk 0:02:51]}  a6 {[%clk 0:03:01]} 7. Bc4 {[%clk 0:02:48]}  Bg4 {[%clk 0:02:53]} 8. h3 {[%clk 0:02:45]}  Bxf3 {[%clk 0:02:33]} 9. Qxf3 {[%clk 0:02:43]}  O-O-O {[%clk 0:02:33]} 10. Be3 {[%clk 0:02:34]}  e5 {[%clk 0:02:30]} 11. d5 {[%clk 0:02:10]}  Ba3 {[%clk 0:02:10]} 12. dxc6 {[%clk 0:01:24]}  Bxb2 {[%clk 0:02:10]} 13. O-O {[%clk 0:01:22]}  Qxc3 {[%clk 0:01:52]} 14. Rad1 {[%clk 0:01:08]}  Nf6 {[%clk 0:01:44]} 15. cxb7+ {[%clk 0:00:52]}  Kb8 {[%clk 0:01:44]} 16. Bxf7 {[%clk 0:00:52]}  Qxc2 {[%clk 0:01:38]} 17. Bb3 {[%clk 0:00:45]}  Qe4 {[%clk 0:01:27]} 18. Qg3 {[%clk 0:00:27]}  Rxd1 {[%clk 0:01:11]} 19. Rxd1 {[%clk 0:00:26]}  Nh5 {[%clk 0:01:08]} 20. Qg5 {[%clk 0:00:23]}  Qg6 {[%clk 0:00:53]} 21. Rd8+ {[%clk 0:00:19]}  Rxd8 {[%clk 0:00:51]} 22. Qxd8+ {[%clk 0:00:19]}  Kxb7 {[%clk 0:00:51]} 23. Bd5+ {[%clk 0:00:19]}  c6 {[%clk 0:00:51]} 24. Qd7+ {[%clk 0:00:19]}  Kb8 {[%clk 0:00:49]} 25. Bxc6 {[%clk 0:00:19]}  Qb1+ {[%clk 0:00:43]} 26. Kh2 {[%clk 0:00:18]}  Bd4 {[%clk 0:00:44]} 27. Bxd4 {[%clk 0:00:15]}  exd4 {[%clk 0:00:43]} 28. Qxd4 {[%clk 0:00:16]}  Qf5 {[%clk 0:00:31]} 29. Qb6+ {[%clk 0:00:14]}  Kc8 {[%clk 0:00:31]} 30. Qxa6+ {[%clk 0:00:13]}  Kc7 {[%clk 0:00:31]} 31. Qb7+ {[%clk 0:00:13]}  Kd6 {[%clk 0:00:32]} 32. Bf3 {[%clk 0:00:12]}  Nf6 {[%clk 0:00:29]} 33. g3 {[%clk 0:00:10]}  g5 {[%clk 0:00:28]} 34. Kg2 {[%clk 0:00:10]}  h5 {[%clk 0:00:28]} 35. Qc6+ {[%clk 0:00:09]}  Ke7 {[%clk 0:00:28]} 36. Qc7+ {[%clk 0:00:10]}  Ke6 {[%clk 0:00:28]} 37. Qc8+ {[%clk 0:00:09]}  Ke5 {[%clk 0:00:28]} 38. Qxf5+ {[%clk 0:00:10]}  Kxf5 {[%clk 0:00:28]} 39. a4 {[%clk 0:00:11]}  g4 {[%clk 0:00:27]} 40. hxg4+ {[%clk 0:00:10]}  hxg4 {[%clk 0:00:28]} 41. Be2 {[%clk 0:00:09]}  Ke5 {[%clk 0:00:26]} 42. a5 {[%clk 0:00:09]}  Kd6 {[%clk 0:00:27]} 43. a6 {[%clk 0:00:09]}  Kc7 {[%clk 0:00:27]} 44. Kf1 {[%clk 0:00:09]}  Kb6 {[%clk 0:00:27]} 45. Ke1 {[%clk 0:00:09]}  Ka7 {[%clk 0:00:27]} 46. Kd2 {[%clk 0:00:09]}  Kb6 {[%clk 0:00:28]} 47. Ke3 {[%clk 0:00:10]}  Ka7 {[%clk 0:00:28]} 48. Kf4 {[%clk 0:00:10]}  Kb6 {[%clk 0:00:29]} 49. Kf5 {[%clk 0:00:10]}  Nd5 {[%clk 0:00:28]} 50. Kxg4 {[%clk 0:00:08]}  Nc3 {[%clk 0:00:29]} 51. Bf1 {[%clk 0:00:07]}  Ne4 {[%clk 0:00:28]} 52. Kf3 {[%clk 0:00:05]}  Nd2+ {[%clk 0:00:23]} 53. Kg2 {[%clk 0:00:06]} 1-0


[Site "https://www.chess.com"]

[Event "Titled Tuesday Blitz June 20 Early 2023"]
[White "Ovchinnikov, Vsevolod"]
[Black "Ziatdinov, Raset"]
[WhiteFideId "24176842"]
[BlackFideId "2015323"]
[WhiteElo "2376"]
[BlackElo "2220"]
[Result "1/2-1/2"]
[Round "11"]
[TimeControl "180+2"]
[Date "2023.06.20"]
[WhiteClock "0:00:14"]
[BlackClock "0:00:20"]
[Board "73"]

1. d4 {[%clk 0:03:00]}  Nf6 {[%clk 0:02:59]} 2. c4 {[%clk 0:03:01]}  g6 {[%clk 0:02:59]} 3. Nc3 {[%clk 0:03:00]}  d5 {[%clk 0:02:59]} 4. h4 {[%clk 0:03:00]}  h5 {[%clk 0:02:58]} 5. Nf3 {[%clk 0:02:59]}  Bg7 {[%clk 0:02:58]} 6. Bg5 {[%clk 0:03:00]}  c6 {[%clk 0:02:54]} 7. cxd5 {[%clk 0:02:48]}  cxd5 {[%clk 0:02:53]} 8. Qb3 {[%clk 0:02:47]}  Nc6 {[%clk 0:02:39]} 9. e3 {[%clk 0:02:43]}  e6 {[%clk 0:02:29]} 10. Bb5 {[%clk 0:02:40]}  O-O {[%clk 0:02:28]} 11. Rc1 {[%clk 0:02:34]}  Bd7 {[%clk 0:02:22]} 12. Bxc6 {[%clk 0:02:20]}  Bxc6 {[%clk 0:02:21]} 13. Ne5 {[%clk 0:02:19]}  Qa5 {[%clk 0:02:17]} 14. Qa3 {[%clk 0:02:08]}  Qxa3 {[%clk 0:02:12]} 15. bxa3 {[%clk 0:02:09]}  Rac8 {[%clk 0:02:05]} 16. f3 {[%clk 0:01:58]}  Nd7 {[%clk 0:02:00]} 17. Nxd7 {[%clk 0:01:51]}  Bxd7 {[%clk 0:01:59]} 18. Kd2 {[%clk 0:01:51]}  f6 {[%clk 0:01:45]} 19. Bf4 {[%clk 0:01:51]}  e5 {[%clk 0:01:45]} 20. dxe5 {[%clk 0:01:47]}  fxe5 {[%clk 0:01:45]} 21. Bg5 {[%clk 0:01:48]}  Bc6 {[%clk 0:01:43]} 22. Ne2 {[%clk 0:01:45]}  Kf7 {[%clk 0:01:42]} 23. Rc5 {[%clk 0:01:42]}  b6 {[%clk 0:01:40]} 24. Rc2 {[%clk 0:01:38]}  Ba4 {[%clk 0:01:32]} 25. Rxc8 {[%clk 0:01:37]}  Rxc8 {[%clk 0:01:31]} 26. Nc3 {[%clk 0:01:38]}  Bc6 {[%clk 0:01:29]} 27. Rc1 {[%clk 0:01:37]}  Bb7 {[%clk 0:01:26]} 28. Nb5 {[%clk 0:01:36]}  Rxc1 {[%clk 0:01:23]} 29. Kxc1 {[%clk 0:01:37]}  Ke6 {[%clk 0:01:20]} 30. Nxa7 {[%clk 0:01:31]}  d4 {[%clk 0:01:17]} 31. e4 {[%clk 0:01:23]}  Ba6 {[%clk 0:01:16]} 32. Kd1 {[%clk 0:01:13]}  Bf1 {[%clk 0:01:14]} 33. g3 {[%clk 0:01:01]}  Bf8 {[%clk 0:01:09]} 34. Bc1 {[%clk 0:00:56]}  d3 {[%clk 0:01:05]} 35. Be3 {[%clk 0:00:51]}  Bxa3 {[%clk 0:01:04]} 36. Nb5 {[%clk 0:00:34]}  Be2+ {[%clk 0:00:59]} 37. Ke1 {[%clk 0:00:35]}  Bb4+ {[%clk 0:00:38]} 38. Kf2 {[%clk 0:00:30]}  Bd1 {[%clk 0:00:34]} 39. a3 {[%clk 0:00:20]}  Ba5 {[%clk 0:00:31]} 40. Nc7+ {[%clk 0:00:12]}  Kd7 {[%clk 0:00:28]} 41. Nd5 {[%clk 0:00:13]}  d2 {[%clk 0:00:26]} 42. Nb4 {[%clk 0:00:13]}  Bxf3 {[%clk 0:00:23]} 43. Bxd2 {[%clk 0:00:13]}  Bxe4 {[%clk 0:00:23]} 44. Be3 {[%clk 0:00:11]}  Bxb4 {[%clk 0:00:22]} 45. axb4 {[%clk 0:00:11]}  Kc6 {[%clk 0:00:22]} 46. Bd2 {[%clk 0:00:11]}  Kb5 {[%clk 0:00:22]} 47. Ke3 {[%clk 0:00:12]}  Bd5 {[%clk 0:00:22]} 48. Bc3 {[%clk 0:00:13]}  Kc4 {[%clk 0:00:22]} 49. Bd2 {[%clk 0:00:10]}  b5 {[%clk 0:00:21]} 50. Be1 {[%clk 0:00:10]}  Kb3 {[%clk 0:00:20]} 51. Kd3 {[%clk 0:00:10]}  Bc6 {[%clk 0:00:20]} 52. Bd2 {[%clk 0:00:10]}  Kb2 {[%clk 0:00:20]} 53. Be3 {[%clk 0:00:08]}  Kb3 {[%clk 0:00:20]} 54. Bd2 {[%clk 0:00:08]}  Bd5 {[%clk 0:00:20]} 55. Be1 {[%clk 0:00:08]}  Ka4 {[%clk 0:00:20]} 56. Kc3 {[%clk 0:00:08]}  Ka3 {[%clk 0:00:19]} 57. Kc2 {[%clk 0:00:07]}  Be4+ {[%clk 0:00:19]} 58. Kc3 {[%clk 0:00:08]}  Bd5 {[%clk 0:00:19]} 59. Kc2 {[%clk 0:00:08]}  Ka2 {[%clk 0:00:18]} 60. Bd2 {[%clk 0:00:08]}  e4 {[%clk 0:00:19]} 61. Be1 {[%clk 0:00:08]}  Bc4 {[%clk 0:00:19]} 62. Bd2 {[%clk 0:00:07]}  Bd3+ {[%clk 0:00:19]} 63. Kc3 {[%clk 0:00:08]}  Kb1 {[%clk 0:00:20]} 64. Be3 {[%clk 0:00:08]}  Ka2 {[%clk 0:00:20]} 65. Bd2 {[%clk 0:00:09]}  Kb1 {[%clk 0:00:20]} 66. Be3 {[%clk 0:00:10]}  Bc4 {[%clk 0:00:21]} 67. Bd2 {[%clk 0:00:09]}  Ka2 {[%clk 0:00:20]} 68. Be3 {[%clk 0:00:10]}  Ka3 {[%clk 0:00:21]} 69. Bd2 {[%clk 0:00:10]}  Ka4 {[%clk 0:00:21]} 70. Bc1 {[%clk 0:00:11]}  Bd3 {[%clk 0:00:20]} 71. Be3 {[%clk 0:00:12]}  Bc4 {[%clk 0:00:20]} 72. Bc1 {[%clk 0:00:12]}  Bd3 {[%clk 0:00:20]} 73. Be3 {[%clk 0:00:13]}  Bc4 {[%clk 0:00:20]} 74. Bc1 {[%clk 0:00:14]} 1/2-1/2


[Site "https://www.chess.com"]

[Event "Titled Tuesday Blitz June 20 Early 2023"]
[White "Ansh M Shah"]
[Black "Oro, Faustino"]
[WhiteFideId "25033379"]
[BlackFideId "20000197"]
[WhiteElo "2084"]
[BlackElo "1984"]
[Result "1-0"]
[Round "11"]
[TimeControl "180+2"]
[Date "2023.06.20"]
[WhiteClock "0:00:07"]
[BlackClock "0:00:00"]
[Board "74"]

1. d4 {[%clk 0:03:00]}  Nf6 {[%clk 0:02:59]} 2. c4 {[%clk 0:02:58]}  e6 {[%clk 0:02:59]} 3. g3 {[%clk 0:02:55]}  d5 {[%clk 0:02:55]} 4. Bg2 {[%clk 0:02:54]}  Be7 {[%clk 0:02:55]} 5. Nf3 {[%clk 0:02:54]}  O-O {[%clk 0:02:56]} 6. O-O {[%clk 0:02:53]}  dxc4 {[%clk 0:02:57]} 7. Qc2 {[%clk 0:02:51]}  a6 {[%clk 0:02:55]} 8. a4 {[%clk 0:02:50]}  Bd7 {[%clk 0:02:55]} 9. Ne5 {[%clk 0:02:47]}  Bc6 {[%clk 0:02:25]} 10. Nxc6 {[%clk 0:02:45]}  Nxc6 {[%clk 0:02:25]} 11. Bxc6 {[%clk 0:02:41]}  bxc6 {[%clk 0:02:25]} 12. Qxc4 {[%clk 0:02:42]}  Qd7 {[%clk 0:02:21]} 13. Bf4 {[%clk 0:02:37]}  Rfb8 {[%clk 0:02:17]} 14. b3 {[%clk 0:02:34]}  Bd6 {[%clk 0:02:09]} 15. Bxd6 {[%clk 0:02:34]}  cxd6 {[%clk 0:02:09]} 16. Rc1 {[%clk 0:02:34]}  Rc8 {[%clk 0:02:08]} 17. Nd2 {[%clk 0:02:30]}  c5 {[%clk 0:01:57]} 18. Nf3 {[%clk 0:02:22]}  cxd4 {[%clk 0:01:54]} 19. Qxd4 {[%clk 0:02:23]}  e5 {[%clk 0:01:54]} 20. Qd2 {[%clk 0:02:14]}  Rd8 {[%clk 0:01:29]} 21. Rc4 {[%clk 0:02:05]}  Qb7 {[%clk 0:01:27]} 22. Rb4 {[%clk 0:02:04]}  Qe7 {[%clk 0:01:27]} 23. Rc1 {[%clk 0:02:02]}  d5 {[%clk 0:01:27]} 24. Rb6 {[%clk 0:01:59]}  d4 {[%clk 0:01:24]} 25. Qb4 {[%clk 0:01:51]}  Qe8 {[%clk 0:01:20]} 26. Rc7 {[%clk 0:01:28]}  Nd5 {[%clk 0:01:17]} 27. Qc5 {[%clk 0:01:24]}  Nxb6 {[%clk 0:01:08]} 28. Qxb6 {[%clk 0:01:24]}  Rab8 {[%clk 0:01:09]} 29. Qxa6 {[%clk 0:01:23]}  h6 {[%clk 0:00:46]} 30. Qc4 {[%clk 0:01:23]}  Rdc8 {[%clk 0:00:43]} 31. Nxe5 {[%clk 0:01:16]}  Rxc7 {[%clk 0:00:43]} 32. Qxc7 {[%clk 0:01:17]}  Rxb3 {[%clk 0:00:44]} 33. a5 {[%clk 0:00:58]}  Qe6 {[%clk 0:00:37]} 34. Qd8+ {[%clk 0:00:53]}  Kh7 {[%clk 0:00:36]} 35. Qxd4 {[%clk 0:00:54]}  f6 {[%clk 0:00:18]} 36. Qe4+ {[%clk 0:00:27]}  f5 {[%clk 0:00:18]} 37. Qd4 {[%clk 0:00:21]}  Rb5 {[%clk 0:00:18]} 38. f4 {[%clk 0:00:11]}  Rxa5 {[%clk 0:00:16]} 39. h4 {[%clk 0:00:09]}  Rd5 {[%clk 0:00:15]} 40. Qa7 {[%clk 0:00:08]}  Qd6 {[%clk 0:00:13]} 41. Qe3 {[%clk 0:00:06]}  Rd1+ {[%clk 0:00:13]} 42. Kh2 {[%clk 0:00:05]}  Qd5 {[%clk 0:00:12]} 43. Qf3 {[%clk 0:00:06]}  Qd4 {[%clk 0:00:11]} 44. h5 {[%clk 0:00:03]}  Qg1+ {[%clk 0:00:10]} 45. Kh3 {[%clk 0:00:04]}  Qc5 {[%clk 0:00:08]} 46. Ng6 {[%clk 0:00:04]}  Qd6 {[%clk 0:00:05]} 47. Qa8 {[%clk 0:00:05]}  Qd8 {[%clk 0:00:03]} 48. Qf3 {[%clk 0:00:05]}  Rd5 {[%clk 0:00:03]} 49. Nf8+ {[%clk 0:00:03]}  Kh8 {[%clk 0:00:03]} 50. Ng6+ {[%clk 0:00:04]}  Kh7 {[%clk 0:00:03]} 51. Nf8+ {[%clk 0:00:03]}  Kg8 {[%clk 0:00:04]} 52. Ng6 {[%clk 0:00:04]}  Rd6 {[%clk 0:00:03]} 53. Qb7 {[%clk 0:00:03]}  Qe8 {[%clk 0:00:03]} 54. Qb3+ {[%clk 0:00:03]}  Kh7 {[%clk 0:00:03]} 55. Qb7 {[%clk 0:00:03]}  Re6 {[%clk 0:00:04]} 56. Qf3 {[%clk 0:00:02]}  Rxe2 {[%clk 0:00:04]} 57. Qb7 {[%clk 0:00:02]}  Re1 {[%clk 0:00:03]} 58. Kg2 {[%clk 0:00:02]}  Qe4+ {[%clk 0:00:03]} 59. Qxe4 {[%clk 0:00:01]}  Rxe4 {[%clk 0:00:04]} 60. Kf2 {[%clk 0:00:02]}  Ra4 {[%clk 0:00:04]} 61. Kf3 {[%clk 0:00:02]}  Ra5 {[%clk 0:00:04]} 62. Ne7 {[%clk 0:00:02]}  Rb5 {[%clk 0:00:01]} 63. Kg2 {[%clk 0:00:02]}  Kh8 {[%clk 0:00:02]} 64. Kh3 {[%clk 0:00:02]}  Rc5 {[%clk 0:00:02]} 65. Kg2 {[%clk 0:00:02]}  g6 {[%clk 0:00:02]} 66. Nxg6+ {[%clk 0:00:02]}  Kg7 {[%clk 0:00:03]} 67. Ne5 {[%clk 0:00:03]}  Rd5 {[%clk 0:00:02]} 68. Kf3 {[%clk 0:00:03]}  Kf6 {[%clk 0:00:02]} 69. Kg2 {[%clk 0:00:04]}  Ke6 {[%clk 0:00:03]} 70. Kf3 {[%clk 0:00:04]}  Rd2 {[%clk 0:00:03]} 71. Ke3 {[%clk 0:00:03]}  Ra2 {[%clk 0:00:03]} 72. Kf3 {[%clk 0:00:03]}  Ra3+ {[%clk 0:00:04]} 73. Kg2 {[%clk 0:00:03]}  Kd5 {[%clk 0:00:04]} 74. Nf7 {[%clk 0:00:03]}  Ra6 {[%clk 0:00:03]} 75. Kh3 {[%clk 0:00:03]}  Ke4 {[%clk 0:00:03]} 76. Nh8 {[%clk 0:00:01]}  Kf3 {[%clk 0:00:03]} 77. Ng6 {[%clk 0:00:01]}  Ra1 {[%clk 0:00:03]} 78. Nh4+ {[%clk 0:00:02]}  Kf2 {[%clk 0:00:04]} 79. Nxf5 {[%clk 0:00:02]}  Kf3 {[%clk 0:00:03]} 80. Nh4+ {[%clk 0:00:02]}  Ke4 {[%clk 0:00:03]} 81. Kg2 {[%clk 0:00:01]}  Ra2+ {[%clk 0:00:03]} 82. Kh3 {[%clk 0:00:02]}  Ra8 {[%clk 0:00:03]} 83. Ng6 {[%clk 0:00:03]}  Re8 {[%clk 0:00:02]} 84. Kg4 {[%clk 0:00:03]}  Rd8 {[%clk 0:00:02]} 85. Nh4 {[%clk 0:00:04]}  Rg8+ {[%clk 0:00:02]} 86. Ng6 {[%clk 0:00:05]}  Ke3 {[%clk 0:00:03]} 87. f5 {[%clk 0:00:05]}  Ke4 {[%clk 0:00:03]} 88. f6 {[%clk 0:00:05]}  Ra8 {[%clk 0:00:02]} 89. f7 {[%clk 0:00:06]}  Ra7 {[%clk 0:00:00]} 90. f8=Q {[%clk 0:00:07]} 1-0


[Site "https://www.chess.com"]

[Event "Titled Tuesday Blitz June 20 Early 2023"]
[White "Rizzo, Tobias"]
[Black "Cherniaiev, Tykhon"]
[WhiteFideId "30942691"]
[BlackFideId "14182360"]
[WhiteElo "2481"]
[BlackElo "2450"]
[Result "0-1"]
[Round "11"]
[TimeControl "180+2"]
[Date "2023.06.20"]
[WhiteClock "0:00:30"]
[BlackClock "0:00:08"]
[Board "75"]

1. d4 {[%clk 0:03:00]}  Nf6 {[%clk 0:02:57]} 2. Bg5 {[%clk 0:03:00]}  Ne4 {[%clk 0:02:54]} 3. h4 {[%clk 0:03:00]}  c5 {[%clk 0:02:50]} 4. d5 {[%clk 0:02:56]}  d6 {[%clk 0:02:44]} 5. Nd2 {[%clk 0:02:53]}  Nxg5 {[%clk 0:02:44]} 6. hxg5 {[%clk 0:02:54]}  e6 {[%clk 0:02:42]} 7. dxe6 {[%clk 0:02:43]}  Bxe6 {[%clk 0:02:43]} 8. Ngf3 {[%clk 0:02:43]}  Be7 {[%clk 0:02:28]} 9. e3 {[%clk 0:02:37]}  Nc6 {[%clk 0:02:21]} 10. g6 {[%clk 0:02:35]}  fxg6 {[%clk 0:02:19]} 11. Bd3 {[%clk 0:02:33]}  Bf7 {[%clk 0:01:52]} 12. c3 {[%clk 0:02:22]}  Qc7 {[%clk 0:01:49]} 13. Qa4 {[%clk 0:02:19]}  a6 {[%clk 0:01:40]} 14. Qg4 {[%clk 0:02:14]}  Qd7 {[%clk 0:01:34]} 15. Qg3 {[%clk 0:02:07]}  O-O-O {[%clk 0:01:32]} 16. O-O-O {[%clk 0:02:00]}  d5 {[%clk 0:00:46]} 17. e4 {[%clk 0:01:53]}  d4 {[%clk 0:00:45]} 18. Nc4 {[%clk 0:01:48]}  Qc7 {[%clk 0:00:43]} 19. Qg4+ {[%clk 0:01:19]}  Kb8 {[%clk 0:00:42]} 20. Kb1 {[%clk 0:01:16]}  dxc3 {[%clk 0:00:40]} 21. bxc3 {[%clk 0:01:17]}  Rxd3 {[%clk 0:00:39]} 22. Rxd3 {[%clk 0:01:16]}  Bxc4 {[%clk 0:00:39]} 23. Rd7 {[%clk 0:01:16]}  Qb6+ {[%clk 0:00:34]} 24. Ka1 {[%clk 0:01:17]}  Qa5 {[%clk 0:00:16]} 25. Qf4+ {[%clk 0:01:04]}  Ka8 {[%clk 0:00:16]} 26. Qd2 {[%clk 0:01:03]}  Bf6 {[%clk 0:00:16]} 27. Rc1 {[%clk 0:01:02]}  Re8 {[%clk 0:00:12]} 28. Qb2 {[%clk 0:00:44]}  Qb5 {[%clk 0:00:12]} 29. Qxb5 {[%clk 0:00:43]}  axb5 {[%clk 0:00:12]} 30. Nd2 {[%clk 0:00:41]}  Be6 {[%clk 0:00:11]} 31. Rd3 {[%clk 0:00:38]}  b4 {[%clk 0:00:08]} 32. Nb1 {[%clk 0:00:34]}  Bc4 {[%clk 0:00:08]} 33. Re3 {[%clk 0:00:33]}  Bg5 {[%clk 0:00:08]} 34. cxb4 {[%clk 0:00:32]}  Bxe3 {[%clk 0:00:09]} 35. Rxc4 {[%clk 0:00:30]}  Bd4+ {[%clk 0:00:08]} 0-1


[Site "https://www.chess.com"]

[Event "Titled Tuesday Blitz June 20 Early 2023"]
[White "Papayan, Oleg"]
[Black "Danielyan, Vahe"]
[WhiteFideId "4193911"]
[BlackFideId "13304828"]
[WhiteElo "2167"]
[BlackElo "2423"]
[Result "1-0"]
[Round "11"]
[TimeControl "180+2"]
[Date "2023.06.20"]
[WhiteClock "0:00:08"]
[BlackClock "0:00:00"]
[Board "76"]

1. e4 {[%clk 0:02:58]}  c5 {[%clk 0:02:54]} 2. d4 {[%clk 0:02:58]}  cxd4 {[%clk 0:02:52]} 3. Qxd4 {[%clk 0:02:59]}  Nc6 {[%clk 0:02:51]} 4. Qd3 {[%clk 0:03:00]}  e6 {[%clk 0:02:47]} 5. Nc3 {[%clk 0:03:00]}  Nf6 {[%clk 0:02:44]} 6. Bf4 {[%clk 0:03:00]}  d6 {[%clk 0:02:36]} 7. O-O-O {[%clk 0:02:58]}  e5 {[%clk 0:02:30]} 8. Bg5 {[%clk 0:02:58]}  Be6 {[%clk 0:02:14]} 9. Nf3 {[%clk 0:02:38]}  Be7 {[%clk 0:02:10]} 10. Bxf6 {[%clk 0:02:38]}  gxf6 {[%clk 0:02:08]} 11. Nd5 {[%clk 0:02:18]}  Qd7 {[%clk 0:01:59]} 12. Kb1 {[%clk 0:01:57]}  O-O-O {[%clk 0:01:55]} 13. Be2 {[%clk 0:01:39]}  f5 {[%clk 0:01:47]} 14. Nxe7+ {[%clk 0:01:04]}  Nxe7 {[%clk 0:01:44]} 15. Qa3 {[%clk 0:00:48]}  Nc6 {[%clk 0:01:34]} 16. exf5 {[%clk 0:00:38]}  Bxf5 {[%clk 0:01:32]} 17. Bb5 {[%clk 0:00:35]}  Qc7 {[%clk 0:01:22]} 18. Rd2 {[%clk 0:00:21]}  Kb8 {[%clk 0:01:11]} 19. Rhd1 {[%clk 0:00:21]}  Rhg8 {[%clk 0:00:58]} 20. Nh4 {[%clk 0:00:16]}  Be6 {[%clk 0:00:45]} 21. Bxc6 {[%clk 0:00:13]}  Qxc6 {[%clk 0:00:39]} 22. Rxd6 {[%clk 0:00:14]}  Qc7 {[%clk 0:00:31]} 23. Rxd8+ {[%clk 0:00:14]}  Rxd8 {[%clk 0:00:30]} 24. Qf3 {[%clk 0:00:07]}  e4 {[%clk 0:00:17]} 25. Qe2 {[%clk 0:00:02]}  Bc4 {[%clk 0:00:15]} 26. Rxd8+ {[%clk 0:00:02]}  Qxd8 {[%clk 0:00:16]} 27. Qe1 {[%clk 0:00:02]}  Qxh4 {[%clk 0:00:14]} 28. b3 {[%clk 0:00:02]}  Bd5 {[%clk 0:00:13]} 29. Qd2 {[%clk 0:00:02]}  Bc6 {[%clk 0:00:12]} 30. Qd6+ {[%clk 0:00:02]}  Kc8 {[%clk 0:00:10]} 31. Qf8+ {[%clk 0:00:02]}  Qd8 {[%clk 0:00:10]} 32. Qxf7 {[%clk 0:00:03]}  Qd6 {[%clk 0:00:10]} 33. Qg8+ {[%clk 0:00:03]}  Kc7 {[%clk 0:00:10]} 34. Qxh7+ {[%clk 0:00:04]}  Kb6 {[%clk 0:00:07]} 35. h4 {[%clk 0:00:04]}  Qd3 {[%clk 0:00:06]} 36. cxd3 {[%clk 0:00:04]}  exd3 {[%clk 0:00:06]} 37. Kc1 {[%clk 0:00:05]}  Bxg2 {[%clk 0:00:06]} 38. Qg6+ {[%clk 0:00:05]}  Kb5 {[%clk 0:00:02]} 39. Qxg2 {[%clk 0:00:04]}  Kb4 {[%clk 0:00:03]} 40. Kd2 {[%clk 0:00:05]}  Ka3 {[%clk 0:00:04]} 41. h5 {[%clk 0:00:06]}  Kxa2 {[%clk 0:00:04]} 42. Qxb7 {[%clk 0:00:06]}  Kb2 {[%clk 0:00:03]} 43. h6 {[%clk 0:00:07]}  a5 {[%clk 0:00:02]} 44. h7 {[%clk 0:00:07]}  a4 {[%clk 0:00:00]} 45. h8=Q+ {[%clk 0:00:08]} 1-0


[Site "https://www.chess.com"]

[Event "Titled Tuesday Blitz June 20 Early 2023"]
[White "Pinheiro, Iung Alicio de O."]
[Black "Sai Han Thiha"]
[WhiteFideId "2104350"]
[BlackFideId "13012290"]
[WhiteElo "2283"]
[BlackElo "1953"]
[Result "1-0"]
[Round "11"]
[TimeControl "180+2"]
[Date "2023.06.20"]
[WhiteClock "0:00:10"]
[BlackClock "0:00:01"]
[Board "80"]

1. d4 {[%clk 0:03:00]}  Nf6 {[%clk 0:03:00]} 2. c4 {[%clk 0:02:59]}  g6 {[%clk 0:03:00]} 3. Nc3 {[%clk 0:02:59]}  Bg7 {[%clk 0:03:01]} 4. e4 {[%clk 0:02:58]}  d6 {[%clk 0:03:01]} 5. h3 {[%clk 0:02:56]}  O-O {[%clk 0:03:00]} 6. Be3 {[%clk 0:02:52]}  c5 {[%clk 0:02:57]} 7. Nf3 {[%clk 0:02:51]}  cxd4 {[%clk 0:02:49]} 8. Nxd4 {[%clk 0:02:52]}  Nc6 {[%clk 0:02:50]} 9. Be2 {[%clk 0:02:50]}  Nxd4 {[%clk 0:02:36]} 10. Bxd4 {[%clk 0:02:49]}  Be6 {[%clk 0:02:37]} 11. Rc1 {[%clk 0:02:39]}  Qa5 {[%clk 0:02:29]} 12. O-O {[%clk 0:02:38]}  Rfc8 {[%clk 0:02:28]} 13. b3 {[%clk 0:02:35]}  Nd7 {[%clk 0:02:25]} 14. Bxg7 {[%clk 0:02:24]}  Kxg7 {[%clk 0:02:25]} 15. f4 {[%clk 0:02:21]}  f6 {[%clk 0:02:19]} 16. Bg4 {[%clk 0:02:08]}  Nf8 {[%clk 0:02:06]} 17. Bxe6 {[%clk 0:01:54]}  Nxe6 {[%clk 0:02:07]} 18. Nd5 {[%clk 0:01:47]}  Nf8 {[%clk 0:01:46]} 19. f5 {[%clk 0:01:09]}  Re8 {[%clk 0:01:27]} 20. b4 {[%clk 0:01:01]}  Qxa2 {[%clk 0:01:18]} 21. Nc7 {[%clk 0:00:59]}  Qb2 {[%clk 0:01:09]} 22. Nxa8 {[%clk 0:00:54]}  Rxa8 {[%clk 0:01:08]} 23. b5 {[%clk 0:00:48]}  a5 {[%clk 0:00:56]} 24. Qd5 {[%clk 0:00:39]}  Rb8 {[%clk 0:00:54]} 25. Ra1 {[%clk 0:00:30]}  b6 {[%clk 0:00:53]} 26. Rab1 {[%clk 0:00:28]}  Qc3 {[%clk 0:00:48]} 27. fxg6 {[%clk 0:00:28]}  hxg6 {[%clk 0:00:46]} 28. Rf3 {[%clk 0:00:28]}  Qc2 {[%clk 0:00:44]} 29. Rbf1 {[%clk 0:00:25]}  a4 {[%clk 0:00:36]} 30. h4 {[%clk 0:00:25]}  Rc8 {[%clk 0:00:20]} 31. Qb7 {[%clk 0:00:24]}  Re8 {[%clk 0:00:21]} 32. Qc6 {[%clk 0:00:18]}  Kf7 {[%clk 0:00:16]} 33. h5 {[%clk 0:00:15]}  gxh5 {[%clk 0:00:16]} 34. Qd5+ {[%clk 0:00:15]}  e6 {[%clk 0:00:12]} 35. Rxf6+ {[%clk 0:00:14]}  Ke7 {[%clk 0:00:13]} 36. Qb7+ {[%clk 0:00:14]}  Kd8 {[%clk 0:00:01]} 37. Rxf8 {[%clk 0:00:10]} 1-0


[Site "https://www.chess.com"]